lending/lending_fUSD_20250429
["ID","MTS","AMOUNT","RATE_DAILY","PERIOD"]
[359340011,1745945437204,-500.0,0.00027396,2]
[359340013,1745945437214,-500.0,0.00027396,2]
[359340015,1745945437223,-492.9294,0.00027397,2]
[359340017,1745945437233,-838.601084,0.00027397,2]
[359340019,1745945437243,-198.172518,0.00027397,2]
[359340021,1745945437253,-171.144396,0.00027397,2]
[359340044,1745945437453,-177.962884,0.00027397,2]
[359340046,1745945437463,-151.0,0.00027397,7]
[359340048,1745945437473,-168.642672,0.00027397,2]
[359340050,1745945437482,-151.0,0.00027397,7]
[359340052,1745945437491,-178.856008,0.00027397,2]
[359340054,1745945437500,-393.59819371,0.00027397,2]
[359340056,1745945437509,-195.405009,0.00027397,2]
[359340058,1745945437519,-190.0,0.00027397,2]
[359340060,1745945437528,-530.0,0.00027397,2]
[359340061,1745945437537,-435.305035,0.00027397,2]
[359340062,1745945437547,-547.68462235,0.00027397,2]
[359340063,1745945437556,-546.00792925,0.00027397,2]
[359340064,1745945437565,-530.0,0.00027397,2]
[359340065,1745945437574,-556.13950949,0.00027397,2]
[359340066,1745945437584,-392.66888726,0.00027397,2]
[359340067,1745945437593,-152.074473,0.00027397,7]
[359340068,1745945437602,-327.93539322,0.00027397,2]
[359340069,1745945437612,-33.49292367,0.00027397,2]
[359340070,1745945437636,-436.50707633,0.00027397,2]
[359340071,1745945437645,-102.98290312,0.00027397,2]
[359340101,1745945438338,-430.01230737,0.00027397,2]
[359340102,1745945438347,-470.0,0.00027397,2]
[359340103,1745945438357,-470.0,0.00027397,2]
[359340104,1745945438367,-470.0,0.00027397,2]
[359340105,1745945438377,-470.0,0.00027397,2]
[359340106,1745945438387,-470.0,0.00027397,2]
[359340107,1745945438395,-232.96644181,0.00027397,2]
[359340108,1745945438405,-810.11,0.00027397,2]
[359340109,1745945438414,-512.78721608,0.00027397,2]
[359340110,1745945438425,-509.27199521,0.00027397,2]
[359340111,1745945438434,-470.0,0.00027397,2]
[359340112,1745945438443,-470.0,0.00027397,2]
[359340113,1745945438452,-512.21880561,0.00027397,2]
[359340114,1745945438461,-501.10673211,0.00027397,2]
[359340115,1745945438471,-470.0,0.00027397,2]
[359340116,1745945438480,-489.25647391,0.00027397,2]
[359340117,1745945438490,-500.0,0.00027397,2]
[359340118,1745945438499,-470.0,0.00027397,2]
[359340119,1745945438508,-540.66858809,0.00027397,2]
[359340120,1745945438518,-764.44,0.00027397,2]
[359340121,1745945438528,-500.0,0.00027397,2]
[359340122,1745945438537,-1000.0,0.00027397,2]
[359340123,1745945438547,-500.0,0.00027397,2]
[359340124,1745945438556,-470.0,0.00027397,2]
[359340125,1745945438566,-507.49471771,0.00027397,2]
[359340126,1745945438575,-470.0,0.00027397,2]
[359340127,1745945438584,-542.91758028,0.00027397,2]
[359340128,1745945438594,-470.0,0.00027397,2]
[359340130,1745945438603,-721.04,0.00027397,2]
[359340132,1745945438612,-517.60254305,0.00027397,2]
[359340134,1745945438622,-470.0,0.00027397,2]
[359340135,1745945438632,-515.29222645,0.00027397,2]
[359340137,1745945438641,-510.46340478,0.00027397,2]
[359340139,1745945438651,-530.00037006,0.00027397,2]
[359340141,1745945438660,-470.0,0.00027397,2]
[359340143,1745945438671,-717.09,0.00027397,2]
[359340145,1745945438680,-470.0,0.00027397,2]
[359340147,1745945438690,-517.26361737,0.00027397,2]
[359340149,1745945438699,-520.38854166,0.00027397,2]
[359340151,1745945438709,-470.0,0.00027397,2]
[359340154,1745945438718,-470.0,0.00027397,2]
[359340156,1745945438728,-506.2199628,0.00027397,2]
[359340159,1745945438738,-513.58956295,0.00027397,2]
[359340162,1745945438748,-513.38235498,0.00027397,2]
[359340164,1745945438761,-515.61734154,0.00027397,2]
[359340166,1745945438770,-470.0,0.00027397,2]
[359340168,1745945438780,-470.0,0.00027397,2]
[359340170,1745945438789,-500.0,0.00027397,2]
[359340172,1745945438799,-751.9,0.00027397,2]
[359340174,1745945438809,-512.11905232,0.00027397,2]
[359340176,1745945438818,-506.82691628,0.00027397,2]
[359340178,1745945438828,-510.9934208,0.00027397,2]
[359340180,1745945438838,-470.0,0.00027397,2]
[359340182,1745945438847,-470.0,0.00027397,2]
[359340184,1745945438856,-511.7172596,0.00027397,2]
[359340185,1745945438865,-470.0,0.00027397,2]
[359340187,1745945438874,-524.63034693,0.00027397,2]
[359340189,1745945438883,-470.0,0.00027397,2]
[359340191,1745945438893,-533.29,0.00027397,2]
[359340193,1745945438902,-470.0,0.00027397,2]
[359340195,1745945438911,-534.68003415,0.00027397,2]
[359340197,1745945438922,-617.11,0.00027397,2]
[359340199,1745945438932,-500.0,0.00027397,2]
[359340200,1745945438942,-470.0,0.00027397,2]
[359340201,1745945438951,-470.0,0.00027397,2]
[359340202,1745945438961,-470.0,0.00027397,2]
[359340203,1745945438970,-470.0,0.00027397,2]
[359340204,1745945438981,-511.21299389,0.00027397,2]
[359340205,1745945438990,-470.0,0.00027397,2]
[359340206,1745945438999,-470.0,0.00027397,2]
[359340207,1745945439009,-485.42,0.00027397,2]
[359340208,1745945439019,-470.0,0.00027397,2]
[359340209,1745945439029,-470.0,0.00027397,2]
[359340210,1745945439039,-470.0,0.00027397,2]
[359340211,1745945439049,-470.0,0.00027397,2]
[359340212,1745945439059,-470.0,0.00027397,2]
[359340213,1745945439068,-470.0,0.00027397,2]
[359340214,1745945439078,-470.0,0.00027397,2]
[359340215,1745945439087,-470.0,0.00027397,2]
[359340216,1745945439097,-776.56,0.00027397,2]
[359340217,1745945439106,-470.0,0.00027397,2]
[359340218,1745945439116,-470.0,0.00027397,2]
[359340219,1745945439125,-470.0,0.00027397,2]
[359340220,1745945439136,-470.0,0.00027397,2]
[359340221,1745945439146,-288.65349744,0.00027397,2]
[359340222,1745945439155,-486.7,0.00027397,2]
[359340223,1745945439164,-508.63832193,0.00027397,2]
[359340224,1745945439175,-222.61871063,0.00027397,2]
[359340225,1745945439185,-470.0,0.00027397,2]
[359340226,1745945439194,-538.07859182,0.00027397,2]
[359340227,1745945439204,-470.0,0.00027397,2]
[359340228,1745945439214,-470.0,0.00027397,2]
[359340229,1745945439224,-470.0,0.00027397,2]
[359340230,1745945439234,-470.0,0.00027397,2]
[359340231,1745945439243,-470.0,0.00027397,2]
[359340232,1745945439255,-500.0,0.00027397,2]
[359340233,1745945439265,-470.0,0.00027397,2]
[359340234,1745945439275,-659.93,0.00027397,2]
[359340235,1745945439284,-914.74,0.00027397,2]
[359340236,1745945439294,-470.0,0.00027397,2]
[359340237,1745945439304,-470.0,0.00027397,2]
[359340238,1745945439314,-470.0,0.00027397,2]
[359340239,1745945439324,-470.0,0.00027397,2]
[359340240,1745945439336,-555.73,0.00027397,2]
[359340241,1745945439346,-648.67,0.00027397,2]
[359340242,1745945439356,-854.19,0.00027397,2]
[359340243,1745945439370,-470.0,0.00027397,2]
[359340244,1745945439387,-899.51,0.00027397,2]
[359340245,1745945439403,-698.2,0.00027397,2]
[359340246,1745945439417,-470.0,0.00027397,2]
[359340247,1745945439433,-741.54,0.00027397,2]
[359340248,1745945439449,-1811.72,0.00027397,2]
[359340249,1745945439465,-470.0,0.00027397,2]
[359340250,1745945439478,-470.0,0.00027397,2]
[359340251,1745945439490,-470.0,0.00027397,2]
[359340252,1745945439506,-516.26,0.00027397,2]
[359340253,1745945439519,-470.0,0.00027397,2]
[359340254,1745945439535,-470.0,0.00027397,2]
[359340255,1745945439551,-470.0,0.00027397,2]
[359340256,1745945439565,-470.0,0.00027397,2]
[359340257,1745945439581,-500.0,0.00027397,2]
[359340258,1745945439595,-500.0,0.00027397,2]
[359340259,1745945439608,-470.0,0.00027397,2]
[359340260,1745945439622,-470.0,0.00027397,2]
[359340261,1745945439638,-470.0,0.00027397,2]
[359340262,1745945439652,-470.0,0.00027397,2]
[359340263,1745945439665,-531.88,0.00027397,2]
[359340264,1745945439677,-470.0,0.00027397,2]
[359340265,1745945439694,-470.0,0.00027397,2]
[359340266,1745945439707,-500.0,0.00027397,2]
[359340267,1745945439718,-470.0,0.00027397,2]
[359340268,1745945439732,-470.0,0.00027397,2]
[359340269,1745945439746,-470.0,0.00027397,2]
[359340270,1745945439762,-470.0,0.00027397,2]
[359340271,1745945439774,-470.0,0.00027397,2]
[359340272,1745945439787,-500.0,0.00027397,2]
[359340273,1745945439799,-500.0,0.00027397,2]
[359340274,1745945439816,-583.80061099,0.00027397,2]
[359340275,1745945439829,-470.0,0.00027397,2]
[359340276,1745945439842,-500.0,0.00027397,2]
[359340277,1745945439855,-743.72,0.00027397,2]
[359340278,1745945439867,-500.0,0.00027397,2]
[359340279,1745945439880,-470.0,0.00027397,2]
[359340280,1745945439892,-993.9,0.00027397,2]
[359340281,1745945439905,-470.0,0.00027397,2]
[359340282,1745945439918,-470.0,0.00027397,2]
[359340283,1745945439931,-470.0,0.00027397,2]
[359340284,1745945439944,-470.0,0.00027397,2]
[359340285,1745945439957,-575.91,0.00027397,2]
[359340286,1745945439970,-470.0,0.00027397,2]
[359340287,1745945439983,-470.0,0.00027397,2]
[359340288,1745945439995,-470.0,0.00027397,2]
[359340289,1745945440008,-470.0,0.00027397,2]
[359340291,1745945440021,-470.0,0.00027397,2]
[359340292,1745945440034,-470.0,0.00027397,2]
[359340293,1745945440046,-470.0,0.00027397,2]
[359340294,1745945440059,-470.0,0.00027397,2]
[359340295,1745945440071,-545.3,0.00027397,2]
[359340296,1745945440084,-496.39503761,0.00027397,2]
[359340297,1745945440096,-470.0,0.00027397,2]
[359340298,1745945440108,-470.0,0.00027397,2]
[359340299,1745945440121,-470.0,0.00027397,2]
[359340300,1745945440134,-470.0,0.00027397,2]
[359340301,1745945440147,-470.0,0.00027397,2]
[359340302,1745945440160,-732.88,0.00027397,2]
[359340303,1745945440172,-1123.3,0.00027397,2]
[359340304,1745945440184,-470.0,0.00027397,2]
[359340305,1745945440197,-291.19764492,0.00027397,2]
[359340306,1745945440209,-552.97,0.00027397,2]
[359340307,1745945440221,-470.0,0.00027397,2]
[359340308,1745945440234,-516.30059504,0.00027397,2]
[359340309,1745945440247,-470.0,0.00027397,2]
[359340310,1745945440259,-470.0,0.00027397,2]
[359340311,1745945440272,-470.0,0.00027397,2]
[359340312,1745945440284,-470.0,0.00027397,2]
[359340313,1745945440297,-932.19,0.00027397,2]
[359340314,1745945440309,-470.0,0.00027397,2]
[359340315,1745945440321,-867.56,0.00027397,2]
[359340316,1745945440334,-517.31057863,0.00027397,2]
[359340317,1745945440347,-583.65253164,0.00027397,2]
[359340318,1745945440360,-470.0,0.00027397,2]
[359340319,1745945440372,-779.72,0.00027397,2]
[359340320,1745945440386,-530.0,0.00027397,2]
[359340321,1745945440399,-484.19,0.00027397,2]
[359340322,1745945440412,-755.86,0.00027397,2]
[359340323,1745945440425,-499.40560064,0.00027397,2]
[359340324,1745945440438,-470.0,0.00027397,2]
[359340325,1745945440451,-470.0,0.00027397,2]
[359340326,1745945440463,-470.0,0.00027397,2]
[359340327,1745945440476,-654.16,0.00027397,2]
[359340328,1745945440488,-470.0,0.00027397,2]
[359340329,1745945440502,-509.42,0.00027397,2]
[359340330,1745945440515,-470.0,0.00027397,2]
[359340331,1745945440528,-470.0,0.00027397,2]
[359340332,1745945440543,-500.0,0.00027397,2]
[359340333,1745945440558,-500.0,0.00027397,2]
[359340334,1745945440570,-502.92153334,0.00027397,2]
[359340335,1745945440583,-470.0,0.00027397,2]
[359340336,1745945440595,-470.0,0.00027397,2]
[359340337,1745945440609,-470.0,0.00027397,2]
[359340338,1745945440622,-508.91278633,0.00027397,2]
[359340339,1745945440635,-536.0370058,0.00027397,2]
[359340340,1745945440647,-500.0,0.00027397,2]
[359340341,1745945440660,-470.0,0.00027397,2]
[359340342,1745945440674,-470.0,0.00027397,2]
[359340343,1745945440687,-651.86,0.00027397,2]
[359340344,1745945440699,-470.0,0.00027397,2]
[359340345,1745945440712,-500.0,0.00027397,2]
[359340346,1745945440724,-470.0,0.00027397,2]
[359340347,1745945440736,-725.17,0.00027397,2]
[359340348,1745945440748,-470.0,0.00027397,2]
[359340349,1745945440765,-470.0,0.00027397,2]
[359340350,1745945440777,-765.69,0.00027397,2]
[359340351,1745945440789,-309.20817495,0.00027397,2]
[359340352,1745945440803,-470.0,0.00027397,2]
[359340353,1745945440815,-470.0,0.00027397,2]
[359340354,1745945440827,-2439.21,0.00027397,2]
[359340355,1745945440840,-697.83,0.00027397,2]
[359340356,1745945440852,-186.99218392,0.00027397,2]
[359340357,1745945440864,-470.0,0.00027397,2]
[359340358,1745945440876,-470.0,0.00027397,2]
[359340359,1745945440888,-212.01735173,0.00027397,2]
[359340360,1745945440900,-470.0,0.00027397,2]
[359340361,1745945440912,-470.0,0.00027397,2]
[359340362,1745945440925,-1259.26,0.00027397,2]
[359340363,1745945440937,-822.05,0.00027397,2]
[359340364,1745945440950,-470.0,0.00027397,2]
[359340365,1745945440962,-470.0,0.00027397,2]
[359340366,1745945440972,-481.03,0.00027397,2]
[359340367,1745945440981,-470.0,0.00027397,2]
[359340368,1745945440991,-470.0,0.00027397,2]
[359340369,1745945441000,-470.0,0.00027397,2]
[359340370,1745945441011,-405.25248599,0.00027397,2]
[359340371,1745945441023,-654.11,0.00027397,2]
[359340372,1745945441035,-470.0,0.00027397,2]
[359340373,1745945441045,-500.0,0.00027397,2]
[359340374,1745945441055,-470.0,0.00027397,2]
[359340375,1745945441065,-470.0,0.00027397,2]
[359340376,1745945441074,-507.76,0.00027397,2]
[359340377,1745945441083,-1021.94,0.00027397,2]
[359340378,1745945441092,-470.0,0.00027397,2]
[359340379,1745945441102,-840.0,0.00027397,2]
[359340380,1745945441112,-470.0,0.00027397,2]
[359340381,1745945441410,-470.0,0.00027397,2]
[359340382,1745945441431,-4404.0,0.00027397,2]
[359340383,1745945441455,-470.0,0.00027397,2]
[359340384,1745945441465,-470.0,0.00027397,2]
[359340385,1745945441474,-821.39,0.00027397,2]
[359340386,1745945441483,-470.0,0.00027397,2]
[359340387,1745945441493,-470.0,0.00027397,2]
[359340388,1745945441502,-512.36,0.00027397,2]
[359340389,1745945441511,-470.0,0.00027397,2]
[359340390,1745945441520,-470.0,0.00027397,2]
[359340391,1745945441530,-470.0,0.00027397,2]
[359340392,1745945441539,-470.0,0.00027397,2]
[359340393,1745945441548,-704.87,0.00027397,2]
[359340394,1745945441557,-470.0,0.00027397,2]
[359340395,1745945441567,-772.23,0.00027397,2]
[359340396,1745945441578,-500.0,0.00027397,2]
[359340397,1745945441588,-470.0,0.00027397,2]
[359340398,1745945441597,-849.29,0.00027397,2]
[359340399,1745945441607,-710.84,0.00027397,2]
[359340400,1745945441617,-470.0,0.00027397,2]
[359340401,1745945441627,-470.0,0.00027397,2]
[359340402,1745945441636,-470.0,0.00027397,2]
[359340403,1745945441646,-508.91170912,0.00027397,2]
[359340404,1745945441655,-500.0,0.00027397,2]
[359340405,1745945441665,-470.0,0.00027397,2]
[359340406,1745945441674,-470.0,0.00027397,2]
[359340407,1745945441683,-853.92,0.00027397,2]
[359340408,1745945441692,-688.27,0.00027397,2]
[359340409,1745945441703,-588.21,0.00027397,2]
[359340410,1745945441712,-470.0,0.00027397,2]
[359340411,1745945441722,-470.0,0.00027397,2]
[359340412,1745945441731,-512.13113354,0.00027397,2]
[359340413,1745945441741,-470.0,0.00027397,2]
[359340414,1745945441750,-494.55,0.00027397,2]
[359340415,1745945441765,-1094.32,0.00027397,2]
[359340416,1745945441775,-502.47253425,0.00027397,2]
[359340417,1745945441784,-626.02,0.00027397,2]
[359340418,1745945441794,-395.74814103,0.00027397,2]
[359340419,1745945441805,-8647.885344,0.00027397,2]
[359340420,1745945441815,-470.0,0.00027397,2]
[359340421,1745945441824,-530.0,0.00027397,2]
[359340422,1745945441836,-628.21,0.00027397,2]
[359340423,1745945441845,-470.0,0.00027397,2]
[359340424,1745945441854,-470.0,0.00027397,2]
[359340425,1745945441863,-609.65471686,0.00027397,2]
[359340426,1745945441872,-835.73,0.00027397,2]
[359340427,1745945441881,-470.0,0.00027397,2]
[359340428,1745945441890,-470.0,0.00027397,2]
[359340429,1745945441899,-1124.04,0.00027397,2]
[359340430,1745945441910,-470.0,0.00027397,2]
[359340431,1745945441919,-502.18435207,0.00027397,2]
[359340432,1745945441929,-954.51,0.00027397,2]
[359340433,1745945441938,-470.0,0.00027397,2]
[359340434,1745945441948,-500.0,0.00027397,2]
[359340435,1745945441957,-500.0,0.00027397,2]
[359340436,1745945441966,-470.0,0.00027397,2]
[359340437,1745945441975,-470.0,0.00027397,2]
[359340438,1745945441985,-470.0,0.00027397,2]
[359340439,1745945441993,-470.0,0.00027397,2]
[359340440,1745945442002,-470.0,0.00027397,2]
[359340441,1745945442011,-505.44,0.00027397,2]
[359340442,1745945442020,-470.0,0.00027397,2]
[359340443,1745945442029,-470.0,0.00027397,2]
[359340444,1745945442038,-508.52375054,0.00027397,2]
[359340445,1745945442047,-591.20138801,0.00027397,2]
[359340446,1745945442056,-470.0,0.00027397,2]
[359340447,1745945442065,-470.0,0.00027397,2]
[359340448,1745945442075,-470.0,0.00027397,2]
[359340449,1745945442084,-470.0,0.00027397,2]
[359340450,1745945442093,-470.0,0.00027397,2]
[359340451,1745945442102,-440.78325345,0.00027397,2]
[359340452,1745945442139,-59.21674655,0.00027397,2]
[359340453,1745945442148,-500.0,0.00027397,2]
[359340454,1745945442157,-470.0,0.00027397,2]
[359340455,1745945442167,-470.0,0.00027397,2]
[359340456,1745945442176,-470.0,0.00027397,2]
[359340457,1745945442185,-470.0,0.00027397,2]
[359340458,1745945442194,-500.0,0.00027397,2]
[359340459,1745945442203,-164.23311921,0.00027397,2]
[359340460,1745945442213,-161.665332,0.00027397,2]
[359340461,1745945442222,-573.07223589,0.00027397,2]
[359340462,1745945442231,-470.0,0.00027397,2]
[359340463,1745945442240,-501.42826194,0.00027397,2]
[359340464,1745945442249,-470.0,0.00027397,2]
[359340465,1745945442259,-506.91293231,0.00027397,2]
[359340466,1745945442268,-470.0,0.00027397,2]
[359340467,1745945442277,-516.26,0.00027397,2]
[359340468,1745945442286,-659.71,0.00027397,2]
[359340469,1745945442296,-500.0,0.00027397,2]
[359340470,1745945442305,-879.65,0.00027397,2]
[359340471,1745945442314,-80.3870016,0.00027397,2]
[359340472,1745945442851,-389.6129984,0.00027397,2]
[359340473,1745945442861,-470.0,0.00027397,2]
[359340474,1745945442870,-470.0,0.00027397,2]
[359340475,1745945442880,-639.7,0.00027397,2]
[359340476,1745945442889,-508.93933535,0.00027397,2]
[359340477,1745945442898,-259.55289256,0.00027397,2]
[359340478,1745945442908,-470.0,0.00027397,2]
[359340479,1745945442917,-510.88946932,0.00027397,2]
[359340480,1745945442927,-470.0,0.00027397,2]
[359340481,1745945442936,-220.26149924,0.00027397,2]
[359340482,1745945442946,-490.7,0.00027397,2]
[359340483,1745945442955,-470.0,0.00027397,2]
[359340484,1745945442964,-904.32,0.00027397,2]
[359340485,1745945442974,-510.13993371,0.00027397,2]
[359340486,1745945442983,-470.0,0.00027397,2]
[359340487,1745945442993,-500.0,0.00027397,2]
[359340489,1745945443002,-509.42234706,0.00027397,2]
[359340491,1745945443011,-470.0,0.00027397,2]
[359340492,1745945443020,-470.0,0.00027397,2]
[359340494,1745945443029,-356.42788519,0.00027397,2]
[359340496,1745945443041,-113.57211481,0.00027397,2]
[359340498,1745945443051,-470.0,0.00027397,2]
[359340500,1745945443061,-500.0,0.00027397,2]
[359340502,1745945443070,-470.0,0.00027397,2]
[359340504,1745945443080,-470.0,0.00027397,2]
[359340506,1745945443091,-470.0,0.00027397,2]
[359340508,1745945443101,-470.0,0.00027397,2]
[359340510,1745945443111,-633.65,0.00027397,2]
[359340511,1745945443122,-933.32,0.00027397,2]
[359340512,1745945443132,-1192.9,0.00027397,2]
[359340513,1745945443142,-495.63,0.00027397,2]
[359340514,1745945443152,-470.0,0.00027397,2]
[359340515,1745945443162,-470.0,0.00027397,2]
[359340517,1745945443171,-470.0,0.00027397,2]
[359340518,1745945443182,-470.0,0.00027397,2]
[359340519,1745945443192,-510.42783081,0.00027397,2]
[359340520,1745945443201,-470.0,0.00027397,2]
[359340521,1745945443211,-505.54894061,0.00027397,2]
[359340522,1745945443220,-470.0,0.00027397,2]
[359340523,1745945443229,-470.0,0.00027397,2]
[359340524,1745945443238,-470.0,0.00027397,2]
[359340525,1745945443249,-470.0,0.00027397,2]
[359340526,1745945443259,-635.47,0.00027397,2]
[359340527,1745945443268,-470.0,0.00027397,2]
[359340528,1745945443277,-470.0,0.00027397,2]
[359340529,1745945443288,-470.0,0.00027397,2]
[359340531,1745945443299,-605.58,0.00027397,2]
[359340532,1745945443310,-470.0,0.00027397,2]
[359340533,1745945443320,-470.0,0.00027397,2]
[359340534,1745945443330,-470.0,0.00027397,2]
[359340535,1745945443342,-715.21,0.00027397,2]
[359340536,1745945443351,-721.84,0.00027397,2]
[359340537,1745945443362,-2000.0,0.00027397,2]
[359340538,1745945443371,-470.0,0.00027397,2]
[359340539,1745945443380,-470.0,0.00027397,2]
[359340540,1745945443389,-614.82,0.00027397,2]
[359340541,1745945443398,-470.0,0.00027397,2]
[359340542,1745945443407,-470.0,0.00027397,2]
[359340543,1745945443416,-470.0,0.00027397,2]
[359340544,1745945443425,-470.0,0.00027397,2]
[359340545,1745945443434,-360.33937867,0.00027397,2]
[359340546,1745945443443,-470.0,0.00027397,2]
[359340547,1745945443453,-470.0,0.00027397,2]
[359340548,1745945443462,-522.13551819,0.00027397,2]
[359340549,1745945443471,-470.0,0.00027397,2]
[359340550,1745945443480,-470.0,0.00027397,2]
[359340551,1745945443490,-502.51961842,0.00027397,2]
[359340552,1745945443500,-470.0,0.00027397,2]
[359340553,1745945443512,-470.0,0.00027397,2]
[359340554,1745945443521,-470.0,0.00027397,2]
[359340555,1745945443532,-511.46,0.00027397,2]
[359340556,1745945443542,-470.0,0.00027397,2]
[359340557,1745945443552,-470.0,0.00027397,2]
[359340558,1745945443561,-500.0,0.00027397,2]
[359340559,1745945443571,-633.15,0.00027397,2]
[359340560,1745945443581,-470.0,0.00027397,2]
[359340561,1745945443590,-512.35886129,0.00027397,2]
[359340562,1745945443600,-513.91911817,0.00027397,2]
[359340563,1745945443609,-512.27876575,0.00027397,2]
[359340564,1745945443619,-470.0,0.00027397,2]
[359340565,1745945443628,-470.0,0.00027397,2]
[359340566,1745945443638,-503.42064864,0.00027397,2]
[359340567,1745945443648,-1736.61,0.00027397,2]
[359340568,1745945443658,-500.0,0.00027397,2]
[359340569,1745945443668,-500.0,0.00027397,2]
[359340570,1745945443680,-256.39246024,0.00027397,2]
[359340571,1745945443690,-470.0,0.00027397,2]
[359340572,1745945443700,-513.4104861,0.00027397,2]
[359340573,1745945443709,-470.0,0.00027397,2]
[359340574,1745945443718,-10352.79,0.00027397,2]
[359340575,1745945443728,-804.85,0.00027397,2]
[359340576,1745945443737,-470.0,0.00027397,2]
[359340578,1745945443747,-502.50032003,0.00027397,2]
[359340580,1745945443761,-589.86,0.00027397,2]
[359340582,1745945443770,-507.46343783,0.00027397,2]
[359340584,1745945443781,-988.61,0.00027397,2]
[359340586,1745945443790,-470.0,0.00027397,2]
[359340588,1745945443801,-516.6324022,0.00027397,2]
[359340590,1745945443810,-519.0595547,0.00027397,2]
[359340592,1745945443819,-470.0,0.00027397,2]
[359340595,1745945443829,-500.0,0.00027397,2]
[359340596,1745945443839,-470.0,0.00027397,2]
[359340599,1745945443848,-470.0,0.00027397,2]
[359340601,1745945443857,-48851.25,0.00027397,2]
[359340604,1745945443867,-500.0,0.00027397,2]
[359340606,1745945443877,-250.0,0.00027397,2]
[359340608,1745945443886,-470.0,0.00027397,2]
[359340610,1745945443895,-525.75078363,0.00027397,2]
[359340612,1745945443904,-470.0,0.00027397,2]
[359340614,1745945443913,-470.0,0.00027397,2]
[359340616,1745945443923,-511.07100259,0.00027397,2]
[359340618,1745945443934,-470.0,0.00027397,2]
[359340620,1745945443943,-489.39,0.00027397,2]
[359340622,1745945443954,-470.0,0.00027397,2]
[359340625,1745945443963,-526.50932093,0.00027397,2]
[359340627,1745945443973,-600.09374215,0.00027397,2]
[359340629,1745945443983,-1798.16,0.00027397,2]
[359340631,1745945443992,-470.0,0.00027397,2]
[359340633,1745945444002,-500.0,0.00027397,2]
[359340635,1745945444011,-500.0,0.00027397,2]
[359340637,1745945444020,-510.71305143,0.00027397,2]
[359340639,1745945444029,-500.0,0.00027397,2]
[359340641,1745945444039,-500.0,0.00027397,2]
[359340643,1745945444048,-470.0,0.00027397,2]
[359340645,1745945444057,-724.89,0.00027397,2]
[359340647,1745945444066,-470.0,0.00027397,2]
[359340649,1745945444075,-470.0,0.00027397,2]
[359340651,1745945444084,-1529.48,0.00027397,2]
[359340653,1745945444094,-515.9151616,0.00027397,2]
[359340655,1745945444103,-533.56,0.00027397,2]
[359340657,1745945444112,-470.0,0.00027397,2]
[359340659,1745945444122,-500.0,0.00027397,2]
[359340661,1745945444131,-470.0,0.00027397,2]
[359340663,1745945444141,-500.0,0.00027397,2]
[359340665,1745945444151,-500.0,0.00027397,2]
[359340667,1745945444160,-560.0,0.00027397,2]
[359340669,1745945444170,-500.0,0.00027397,2]
[359340671,1745945444181,-517.92514692,0.00027397,2]
[359340673,1745945444191,-500.0,0.00027397,2]
[359340675,1745945444200,-470.0,0.00027397,2]